Cogmind - Beta 13 @@@ ROGUE MODE // 2024.04.02 @ 21:32:56 Player: lazy_engineer Result: Destroyed by 8Q-6OE(R) with Subdweller Machine Gun Performance ------------- Evolutions (0) 0 Regions Visited (2) 400 Robots Destroyed (28) 140 Value Destroyed (735) 735 Prototype IDs (0) 0 Alien Tech Used (0) 0 Bonus (0) 0 TOTAL SCORE: 1275 Bonus ------- None Cogmind --------- Core Integrity 0/250 Matter 271/300 Energy 200/200 System Corruption 0% Temperature Cool (0) Movement Treading (240) Ox1 Location -10/Subcaves Parts ------- > --- POWER (1) -------- Subdweller Power Source > --- PROPULSION (2) --- Light Treads Light Treads > --- UTILITY (2) ------ High-capacity Storage Unit Signal Interpreter > --- WEAPON (2) ------- Subdweller Machine Gun Makeshift Hammer > --- INVENTORY (20) --- Subdweller Power Source Light Treads Structural Scanner Sensor Array Sensor Array Signal Interpreter Improved Terrain Scanner Improved Terrain Scanner Hacking Suite Riot Gun Barrage Gun Multitool Scrap Shield Fragment (49) Scrap Shield Fragment (45) Peak State ------------ > --- POWER ------------ Subdweller Power Source > --- PROPULSION ------- Light Treads Light Treads > --- UTILITY ---------- High-capacity Storage Unit Signal Interpreter > --- WEAPON ----------- Subdweller Machine Gun Makeshift Hammer > --- INVENTORY -------- Subdweller Power Source Light Treads Light Treads Structural Scanner Sensor Array Sensor Array Signal Interpreter Improved Terrain Scanner Improved Terrain Scanner Hacking Suite Riot Gun Barrage Gun Multitool Scrap Shield Fragment Scrap Shield Fragment [Rating: 14] Favorites ----------- Power Ion Engine Engine Ion Engine Propulsion Light Treads Treads Light Treads Utility Signal Interpreter Storage High-capacity Storage Unit Processor Signal Interpreter Weapon Autogun Energy Gun Medium Laser Ballistic Gun Autogun Special Weapon Mining Laser Impact Weapon Makeshift Hammer Build | -11 -10 -10 ------- Run | Yrd Mat Sub Slots Evolved . | . . . Power . | . . . Propulsion . | . . . Utility . | . . . Weapon . | . . . Parts Attached 24 | 5 10 9 Power 2 | . 1 1 Engine 2 | . 1 1 Core . | . . . Reactor . | . . . Propulsion 7 | 2 3 2 Treads 7 | 2 3 2 Leg . | . . . Wheel . | . . . Hover . | . . . Flight . | . . . Utility 5 | 1 4 . Device . | . . . Storage 3 | 1 2 . Processor 2 | . 2 . Hackware . | . . . Protection . | . . . Artifact . | . . . Weapon 10 | 2 2 6 Energy Gun 1 | 1 . . Energy Cannon . | . . . Ballistic Gun 6 | 1 2 3 Ballistic Cannon . | . . . Launcher . | . . . Special Weapon 2 | . . 2 Impact Weapon 1 | . . 1 Slashing Weapon . | . . . Piercing Weapon . | . . . Special Melee Weapon . | . . . Unidentified Prototypes . | . . . Parts Lost 3 | . . 3 Power . | . . . Propulsion 2 | . . 2 Utility . | . . . Weapon 1 | . . 1 Highest Loss Streak 1 | . . 1 To Critical Strikes . | . . . Average Slot Usage (%) 93 | . 96 89 Engine 8 | . 11 4 Treads 27 | . 28 27 Storage 14 | . 14 14 Processor 13 | . 13 14 Energy Gun 2 | . 3 . Ballistic Gun 20 | . 24 16 Special Weapon 3 | . . 8 Impact Weapon 1 | . . 3 Naked Turns . | . . . Heaviest Build 52 | 9 51 52 Greatest Support 40 | 40 40 40 Greatest Overweight (x) 2 | . 1 2 Average Overweight (x) . | . . 1 Largest Inventory Capacity 20 | 8 20 20 Average Capacity 16 | 7 14 20 Most Carried 17 | 5 11 17 Average Carried 11 | 2 9 14 Final Capacity 20 | 8 20 20 Final Carried 14 | 5 11 14 Class Distribution -------------------- 100% | Mutant Dominant Class ---------------- Mutant | -10/Materials Mutant | -10/Subcaves Resources | -11 -10 -10 ----------- Run | Yrd Mat Sub Matter Collected 756 | 234 307 215 Remotely . | . . . Salvage Created 924 | 132 638 154 Parts 58 | 9 41 8 Haulers Intercepted . | . . . Recyclers Shooed 1 | 1 . . Parts Field Recycled . | . . . Retrieved Matter . | . . . Parts Self-Destructed 10 | . . 10 Prevented . | . . . Kills | -11 -10 -10 ------- Run | Yrd Mat Sub Combat Hostiles Destroyed 20 | . 15 5 Guns 18 | . 15 3 Classes Destroyed 7 | 2 4 1 Tunneler 3 | 3 . . Recycler 1 | 1 . . Operator 1 | . 1 . Watcher 3 | . 3 . Swarmer 5 | . 3 2 Grunt 12 | . 12 . Subdweller 3 | . . 3 Best Kill Streak 6 | 3 6 2 Combat Bots Only 6 | . 6 2 Max Kills in Single Turn 2 | 1 2 1 Gunslinging 1 | . 1 . Exploded . | . . . Melee . | . . . Uniques/NPCs Destroyed . | . . . Combat | -11 -10 -10 -------- Run | Yrd Mat Sub Hostile Shots Fired 107 | . 56 51 Missed 22 | . 13 9 Damage Taken 1257 | . 487 770 Core 264 | . 78 186 Absorbed by Shields . | . . . Core Remaining (%) 100 | 100 . . Volleys Fired 79 | 14 42 23 Largest 2 | 2 2 2 Hottest 130 | 70 70 130 Shots Fired 142 | 28 84 30 Gun 127 | 28 84 15 Cannon . | . . . Launcher . | . . . Special 15 | . . 15 Kinetic 101 | 14 72 15 Thermal 41 | 14 12 15 Explosive . | . . . Electromagnetic . | . . . Robot Hit Streak 15 | 3 15 10 Robot Miss Streak 6 | 3 6 2 Penetration Max . | . . . Secondary Targets 4 | . 4 . Max Gunslinging Chain 1 | . 1 . Shots Hit Robots 92 | 13 54 25 Core Hits 34 | 5 25 4 Critical Kills . | . . . Critical Parts Destroyed 1 | . . 1 Critical Strikes 4 | 1 1 2 Burn 2 | 1 1 . Smash 2 | . . 2 Melee Attacks 19 | . . 19 Impact 19 | . . 19 Slashing . | . . . Piercing . | . . . Sneak Attacks 1 | . . 1 Combat Hostiles 1 | . . 1 Follow-up Attacks . | . . . Damage Inflicted 1660 | 157 816 687 Guns 1196 | 157 816 223 Cannons . | . . . Explosions . | . . . Melee 440 | . . 440 Ramming . | . . . Kinetic 1021 | 69 729 223 Thermal 199 | 88 87 24 Explosive . | . . . Electromagnetic . | . . . Impact 440 | . . 440 Slashing . | . . . Piercing . | . . . Highest Corruption . | . . . Average Corruption . | . . . Corruption Purged . | . . . Corruption Blocked . | . . . Overload Shots . | . . . Overflow Damage 78 | . . 78 Projectiles . | . . . Explosions . | . . . Melee 78 | . . 78 Knockbacks 5 | . . 5 Impact 5 | . . 5 Kinetic . | . . . Secondary . | . . . Self-Inflicted Damage . | . . . Shots . | . . . Rammed . | . . . Targets Rammed . | . . . Kicked . | . . . Crushed . | . . . Highest Temperature 65 | . 65 . Average Temperature 20 | . 20 . Received Heat Transfer 252 | . 252 . Siege Activations . | . . . Robots Corrupted . | . . . Combat Hostiles . | . . . Parts Fried 1 | . . 1 Impact Corruptions 4 | . . 4 Robots Melted . | . . . Combat Hostiles . | . . . Parts Melted 5 | 3 2 . Heat Transferred 716 | 333 333 50 Parts Sabotaged . | . . . Parts Stolen . | . . . Parts Stripped . | . . . Power Chain Reactions . | . . . Alert | -11 -10 -10 ------- Run | Yrd Mat Sub Peak Influence 310 | 20 310 . Initial 13 | . 13 . Average 143 | 8 151 . Maximum Alert Level 1 | . 1 . Low Security (%) 72 | 100 71 . Level 1 27 | . 28 . Level 2 . | . . . Level 3 . | . . . Level 4 . | . . . Level 5 . | . . . High Security . | . . . Max Security . | . . . Squads Dispatched 4 | . 4 . Investigation 4 | . 4 . Extermination . | . . . Reinforcement . | . . . Assault . | . . . Garrison . | . . . Intercept . | . . . Searches Triggered . | . . . Construction Impeded . | . . . Haulers Reinforced . | . . . Active Scanning Responses . | . . . Cargo Convoy Interrupts . | . . . Stealth | -11 -10 -10 --------- Run | Yrd Mat Sub Distress Signals . | . . . Communications Jammed . | . . . Distress Signals . | . . . Times Spotted 37 | . 26 11 Peak Tracking Total 7 | . 7 3 Tactical Retreats 7 | . 2 5 Traps | -11 -10 -10 ------- Run | Yrd Mat Sub Traps Triggered 2 | . 2 . Indirectly . | . . . Trap Hack Attempts . | . . . Triggered . | . . . Disarmed . | . . . Reprogrammed . | . . . Reused . | . . . Traps Extracted . | . . . Installed . | . . . Triggered . | . . . Machines | -11 -10 -10 ---------- Run | Yrd Mat Sub Machines Disabled 4 | . 4 . Max in Single Turn 2 | . 2 . Machines Repaired . | . . . Machines Dismantled . | . . . Machines Sabotaged . | . . . Overloaded Fab Kills . | . . . Hacking | -11 -10 -10 --------- Run | Yrd Mat Sub Machines Accessed 9 | . 9 . Terminals 8 | . 8 . Fabricators . | . . . Repair Stations . | . . . Recycling Units 1 | . 1 . Scanalyzers . | . . . Garrison Access . | . . . Total Hacks 34 | . 34 . Successful 21 | . 21 . Failed 13 | . 13 . Catastrophic 1 | . 1 . Database Lockouts . | . . . Manual 28 | . 27 1 Terminals 33 | . 33 . Fabricators . | . . . Repair Stations . | . . . Recycling Units 1 | . 1 . Scanalyzers . | . . . Garrison Access . | . . . Terminal Hacks 11 | . 11 . Record 1 | . 1 . Emergency Access Points 1 | . 1 . Terminal Index 1 | . 1 . Locate Traps 1 | . 1 . Transport Status 1 | . 1 . Recall Reinforcements 1 | . 1 . Hauler Manifests 3 | . 3 . Zone Layout 2 | . 2 . Fabricator Hacks . | . . . Repair Station Hacks . | . . . Recycling Unit Hacks . | . . . Scanalyzer . | . . . Garrison Access Hacks . | . . . Unauthorized Hacks 10 | . 10 . Terminals 9 | . 9 . Track 1 | . 1 . Botnet 6 | . 6 . Operators 2 | . 2 . Fabricators . | . . . Repair Stations . | . . . Recycling Units 1 | . 1 . Tunnel 1 | . 1 . Scanalyzers . | . . . Garrison Access . | . . . Data Cores Recovered . | . . . Used . | . . . Hacking Detections 7 | . 7 . Full Trace Events 4 | . 4 . Feedback Events . | . . . Feedback Blocked . | . . . Robot Schematics Acquired . | . . . Robots Built . | . . . Authchips . | . . . Time . | . . . Total Robot Build Rating . | . . . Part Schematics Acquired . | . . . Parts Built . | . . . Authchips . | . . . Time . | . . . Total Part Build Rating . | . . . Parts Repaired . | . . . Time . | . . . Parts Recycled . | . . . Recycled Matter . | . . . Retrieved Matter . | . . . Retrieved Components . | . . . Parts Scanalyzed . | . . . Part Schematics Acquired . | . . . Parts Damaged . | . . . Bothacking | -11 -10 -10 ------------ Run | Yrd Mat Sub Used RIF Installer . | . . . Robots Hacked . | . . . Non-combat . | . . . Combat . | . . . Robot Hacks Applied . | . . . Relay Couplers Released . | . . . Fabnet Peak Effective % . | . . . Robots Rewired . | . . . Allies Hacked . | . . . Hacks Repelled . | . . . Allies | -11 -10 -10 -------- Run | Yrd Mat Sub Total Allies . | . . . Largest Group . | . . . Highest-Rated Group . | . . . Highest-Rated Ally . | . . . Total Orders . | . . . Ally Attacks . | . . . Total Damage . | . . . Kills . | . . . Allies Corrupted . | . . . Allies Melted . | . . . Intel | -11 -10 -10 ------- Run | Yrd Mat Sub Robot Analysis Total . | . . . Derelict Logs Recovered . | . . . Drone Launches . | . . . Drone Recoveries . | . . . Exploration | -11 -10 -10 ------------- Run | Yrd Mat Sub Turns Passed 3483 | 115 1970 1398 Spaces Moved 1480 | 47 915 518 Core 15 | 15 . . Treads 1465 | 32 915 518 Legs . | . . . Wheels . | . . . Hover . | . . . Flight . | . . . Fastest Speed 50 | 50 160 240 Average Speed 207 | 124 193 240 Slowest Speed 320 | 160 240 320 Overloaded Moves . | . . . Propulsion Burnouts . | . . . Robots Hopped . | . . . Cave-ins Triggered . | . . . Exploration Rate (%) 45 | 4 99 33 Regions Visited 2 Branch Regions 1 Pre-discovered Areas 1 | . 1 . Known Exits Taken 1 | . 1 . Unknown Exits Taken 1 | 1 . . Scrap Searched . | . . . Spaces Dug . | . . . Terrain Destroyed . | . . . Melee . | . . . Projectile . | . . . AOE . | . . . Terrain Rammed . | . . . Walls Destroyed . | . . . Machines Disabled . | . . . Actions | -11 -10 -10 --------- Run | Yrd Mat Sub Total 1713 | 75 1046 592 Wait 71 | . 60 11 Move 1478 | 46 914 518 Hop . | . . . Pick Up 31 | 10 12 9 Fast Attach 3 | . 3 . Attach 12 | 5 1 6 Detach . | . . . Swap 9 | . 6 3 Drop 11 | . 8 3 Fire 79 | 14 42 23 Melee 19 | . . 19 Ram . | . . . Kick . | . . . Crush . | . . . Escape Stasis . | . . . Rewire . | . . . Trap . | . . . Miscellaneous . | . . . Route ------- -11/Scrapyard -10/Materials (discovered 6 exits: *Mat x3 / *Min x2 / *Sub) -10/Subcaves (discovered 2 exits: *Mat x2) History --------- Turn | Location | Event 28 | -11/Scrapyard | Discovered new exit (range 15) 116 | -11/Scrapyard | Entered Materials 316 | -10/Materials | Build established: Mutant 363 | -10/Materials | Discovered new exit (range 3) 365 | -10/Materials | Identified exit to Materials 962 | -10/Materials | Discovered exit to Materials (range 7) 1111 | -10/Materials | Discovered new exit (range 11) 1284 | -10/Materials | Discovered exit to Materials (range 5) 1313 | -10/Materials | Discovered new exit (range 16) 1998 | -10/Materials | Discovered new exit (range 9) 2043 | -10/Materials | Identified exit to Mines 2084 | -10/Materials | Identified exit to Subcaves 2086 | -10/Materials | Entered Subcaves 2087 | -10/Subcaves | Shifting Twisted Machinery released Barrage Gun 2434 | -10/Subcaves | Shifting Twisted Machinery released Sub. Power Source 2442 | -10/Subcaves | Discovered new exit (range 15) 2489 | -10/Subcaves | Identified exit to Materials 2779 | -10/Subcaves | Shifting Twisted Machinery released Battle Cannon 2817 | -10/Subcaves | Shifting Twisted Machinery released Mak. Hammer 2955 | -10/Subcaves | Visited 4L-MR0's lab 3135 | -10/Subcaves | A swath of the cavern ceiling suddenly collapsed 3280 | -10/Subcaves | Discovered exit to Materials (range 10) 3389 | -10/Subcaves | Core integrity fell below 50% 3411 | -10/Subcaves | Core integrity fell below 20% 3484 | -10/Subcaves | Destroyed by 8Q-6OE(R) with Subdweller Machine Gun Last Messages --------------- 03415_ Acquired 45 matter. 03430_ Acquired 12 matter. 03440_ Subatomizers dissect the Sub. Laser. 03458_ Acquired 16 matter. 03461_ Acquired 52 matter. 03465_ LB-O5J(R) knocked back. 03468_ Subatomizers dissect the Sub. Laser. 03470_ LB-O5J(R) suffers critical hit (Smash). 03470_ LB-O5J(R) knocked back. 03475_ Lgt. Treads destroyed. 03476_ Destroyed Sub. Power Source. 03476_ LB-O5J(R) system corrupted by crushing effect. 03476_ LB-O5J(R) knocked back. 03479_ Subatomizers dissect the Sub. Laser. 03481_ Sneak attack on LB-O5J(R). 03481_ Destroyed Sub. Machine Gun. 03481_ LB-O5J(R) system corrupted by crushing effect. 03481_ LB-O5J(R) knocked back. 03482_ LB-O5J(R) system terminally corrupted. 03482_ Disposable Heat Sink fried. Map ----- +----------------------------------------------------+ | ?????????????????????????????????????????????????? | | ?????????????????????????????????????????????????? | | ?????????????????????????????????????????????????? | | ?????????????????????????????????????????????????? | | ?????????????????????????????????????????????????? | | ?????????????????????????????????????????????????? | | ?????????????????????????????????????????????????? | | ?????????????????????????????????????????????????? | | ?????????????????????????????????????????????????? | | ?????????????????????????????????????????????????? | | ?????????????????????????????? ??????????????????? | | ????????????????????????????? =????????????????? | | ????????????????????????????? ?????????????????? | | ????????????????????????????? ?????????????????? | | ???????????????????????????## #?????????????????? | | ??????????????????????????? "?????????????????? | | ??????????????????????????? ??????????????????? | | ??????????????????????????? "??????????????????? | | ?????????????????????????## ####???????????????? | | ????????????????????????## # ????????????????? | | ???????????????????????## R ?????????????????? | | ?????????????????????### % R ??????????????????? | | ?????????????????????# #???????????????????? | | ??????????????????????# #????????????????????? | | ??????????????????????# *&#?????????????????????? | | ?????????????????????## @ ##????????????????????? | | ?????????????????????# [ #????????????????????? | | ?????????????????????# #????????????????????? | | ?????????????????????# ##????????????????????? | | ????????????????????## ##????????????????????? | | ???????????????????## # #####????????????????? | | ???????????????????# # " #???????????????? | | ???????????????????## " " " ???????????????? | | ????????????????????## """" ## "?????????????? | | ?????????????????????# " " ###??? ?????????????? | | ?????????????????????# "[##??????????????????? | | ????????????????????## """" ??????????######?? | | ???????????????????## """ "????????## ?? | | ???????????????????# " """? #?????# ??? | | ???????????????????# ###" "" ??????? < ???? | | ???????????????????## ##??""" ????????? #???# | | ????????????????????## ##?#"" #??????????# "##??# | | ?????????????????????# ## "" #??????????# ""#??? | | ????????????????????## ## "" #??####???## ##### | | ????????????????????# | "" ##?## #???# # | | ????????????????????## "# ####??# #??## ## | | ????????????????????#" #???## ##?## ## | | ?????????????? # ##### ##### | | ??????????? ## ## ## # # | | ???????????? # ####### | +----------------------------------------------------+ Best States ------------- Heat Dissipation 25 Energy Generation 15 Energy Capacity 250 Matter Stores 276 Matter Capacity 300 Sight Range 18 Terrain Scan Density 10 Evasion (%) 50 Recoil Reduction 2 Item Schematics ----------------- None Robot Schematics ------------------ None Fabricated ------------ Nothing Alien Tech Used ----------------- None Achievements -------------- None Challenges ------------ None Game ------ Seed TransmissionVortexMultitool Manual? 0 Play Time 00:24:25 Cumulative 16.4 hours Start 2024.04.02 @ 21:09:07 End 2024.04.02 @ 21:32:56 Sessions 1 Manual Loads 0 Difficulty Rogue Special Mode None Game No. 32 Rogue 32 Adventurer 0 Explorer 0 Win Type - Total 0 Types 0/0/0/0/0/0/0/0/0 Lore% 16 Gallery% 18 Achievement% 18 Wizard Run 0 Options --------- Layout 0 ASCII 0 Keyboard 0 Movement Mouse Keybinds 0 Fullscreen 1 Font 24/Smallcaps Map View 76x50 Zoom Use 0% Tactical HUD 1 Map Filters NONE Filters NONE Steam 1 RUN: 9c68ba0a-2d77-484c-b7aa-3bec4a570294